fUSD/lending_fUSD_20260524
["ID","MTS","AMOUNT","RATE_DAILY","PERIOD"]
[422885144,1779571843000,-151.0,0.00020897,2]
[422885102,1779571843000,-8216.53,0.00019339,2]
[422885113,1779571843000,-381.9,0.00020381,2]
[422885140,1779571843000,-151.0,0.00020897,2]
[422885082,1779571843000,-2702.44805174,0.0001547,2]
[422885142,1779571843000,-151.0,0.00020897,2]
[422885085,1779571843000,-150.0,0.00016123,2]
[422885147,1779571843000,-151.0,0.00020897,2]
[422885096,1779571843000,-350.0,0.00018,2]
[422885108,1779571843000,-659.0,0.0002,2]
[422885117,1779571843000,-151.0,0.00020897,2]
[422885136,1779571843000,-151.0,0.00020897,2]
[422885143,1779571843000,-151.0,0.00020897,2]
[422885093,1779571843000,-720.63,0.00016796,2]
[422885104,1779571843000,-215.31523495,0.00019698,2]
[422885110,1779571843000,-154.0,0.0002,2]
[422885127,1779571843000,-151.0,0.00020897,2]
[422885130,1779571843000,-151.0,0.00020897,2]
[422885112,1779571843000,-1093.31332939,0.00020233,2]
[422885126,1779571843000,-151.0,0.00020897,2]
[422885135,1779571843000,-151.0,0.00020897,2]
[422885148,1779571843000,-151.0,0.00020897,2]
[422885123,1779571843000,-151.0,0.00020897,2]
[422885150,1779571843000,-155.0,0.00021,2]
[422885125,1779571843000,-151.0,0.00020897,2]
[422885122,1779571843000,-151.0,0.00020897,2]
[422885128,1779571843000,-151.0,0.00020897,2]
[422885138,1779571843000,-151.0,0.00020897,2]
[422885146,1779571843000,-151.0,0.00020897,2]
[422885118,1779571843000,-151.0,0.00020897,2]
[422885120,1779571843000,-151.0,0.00020897,2]
[422885134,1779571843000,-151.0,0.00020897,2]
[422885092,1779571843000,-1093.31332939,0.00016678,2]
[422885119,1779571843000,-151.0,0.00020897,2]
[422885129,1779571843000,-151.0,0.00020897,2]
[422885114,1779571843000,-151.0,0.00020897,2]
[422885139,1779571843000,-151.0,0.00020897,2]
[422885100,1779571843000,-1093.31332939,0.00018456,2]
[422885116,1779571843000,-151.0,0.00020897,2]
[422885101,1779571843000,-150.99,0.00019339,2]
[422885115,1779571843000,-151.0,0.00020897,2]
[422885190,1779571844000,-166.66,0.00023988,30]
[422885202,1779571844000,-450.14,0.00024658,2]
[422885183,1779571844000,-176.63,0.00023119,2]
[422885180,1779571844000,-739.0,0.00023,2]
[422885196,1779571844000,-154.0,0.00024,2]
[422885188,1779571844000,-623.58710447,0.00023793,2]
[422885182,1779571844000,-152.22,0.00023034,2]
[422885179,1779571844000,-659.0,0.00023,2]
[422885194,1779571844000,-659.0,0.00024,2]
[422885186,1779571844000,-1093.31332939,0.00023789,2]
[422885191,1779571844000,-152.0,0.00023994,2]
[422885200,1779571844000,-176.63,0.0002461,2]
[422885181,1779571844000,-154.0,0.00023,2]
[422885213,1779571844000,-152.58,0.00025589,2]
[422885197,1779571844000,-1481.95,0.00024164,2]
[422885184,1779571844000,-720.63,0.00023515,2]
[422885204,1779571844000,-455.0,0.00025,2]
[422885198,1779571844000,-1451.04,0.00024189,2]
[422885199,1779571844000,-381.9,0.00024324,2]
[422885195,1779571844000,-739.0,0.00024,2]
[422885221,1779571844000,-1402.6750476,0.00026292,2]
[422885228,1779571844000,-9177.18,0.0002674,7]
[422885229,1779571844000,-815.0,0.00026746,3]
[422885245,1779571844000,-3976.9879,0.00027253,2]
[422885268,1779571844000,-819.1,0.00027397,2]
[422885270,1779571844000,-1500.0,0.00027397,2]
[422885193,1779571844000,-500.0,0.00024,2]
[422885226,1779571844000,-599.60298507,0.00026532,2]
[422885189,1779571844000,-176.63,0.00023864,2]
[422885201,1779571844000,-1000.0,0.00024658,2]
[422885152,1779571844000,-659.0,0.00021,2]
[422885187,1779571844000,-578.20924308,0.00023793,2]
[422885239,1779571844000,-151.0,0.000269,2]
[422885156,1779571844000,-502.0,0.00021276,7]
[422885176,1779571844000,-166.66,0.00022789,30]
[422885165,1779571844000,-154.0,0.00022,2]
[422885169,1779571844000,-1224.0,0.00022216,2]
[422885159,1779571844000,-2000.0,0.00021951,2]
[422885161,1779571844000,-441.0,0.00022,2]
[422885160,1779571844000,-2353.67,0.0002199,2]
[422885162,1779571844000,-450.0,0.00022,2]
[422885153,1779571844000,-739.0,0.00021,2]
[422885157,1779571844000,-150.0,0.00021455,2]
[422885164,1779571844000,-739.0,0.00022,2]
[422885155,1779571844000,-621.0,0.00021276,7]
[422885154,1779571844000,-154.0,0.00021,2]
[422885192,1779571844000,-441.0,0.00024,2]
[422885175,1779571844000,-1000.0,0.000225,2]
[422885167,1779571844000,-1093.31332939,0.00022011,2]
[422885166,1779571844000,-2177.81592075,0.00022011,2]
[422885170,1779571844000,-625.0,0.00022216,2]
[422885171,1779571844000,-538.56,0.00022293,2]
[422885151,1779571844000,-441.0,0.00021,2]
[422885177,1779571844000,-168.91,0.00022868,2]
[422885158,1779571844000,-500.0,0.000219,2]
[422885173,1779571844000,-176.63,0.00022373,2]
[422885168,1779571844000,-5000.0,0.0002204,2]
[422885178,1779571844000,-441.0,0.00023,2]
[422885163,1779571844000,-659.0,0.00022,2]
[422885172,1779571844000,-381.9,0.00022353,2]
[422885203,1779571844000,-2000.0,0.00024694,2]
[422885185,1779571844000,-2177.81592075,0.00023789,2]
[422885174,1779571844000,-159.52,0.00022417,2]
[422885247,1779571844000,-253.248701,0.00027297,2]
[422885236,1779571844000,-151.0,0.000269,2]
[422885262,1779571844000,-150.0,0.00027397,30]
[422885230,1779571844000,-152.0,0.00026837,7]
[422885232,1779571844000,-29999.000003,0.000269,4]
[422885209,1779571844000,-166.66,0.00025188,30]
[422885215,1779571844000,-815.0,0.00025637,2]
[422885220,1779571844000,-5851.5574911,0.00026292,2]
[422885225,1779571844000,-1000.0,0.000265,2]
[422885246,1779571844000,-253.248701,0.00027297,2]
[422885264,1779571844000,-151.0,0.00027397,2]
[422885279,1779571844000,-523.396642,0.00027397,2]
[422885233,1779571844000,-500.0,0.000269,9]
[422885238,1779571844000,-151.0,0.000269,2]
[422885249,1779571844000,-253.248701,0.00027297,2]
[422885242,1779571844000,-151.0,0.000269,2]
[422885261,1779571844000,-417.1462943,0.00027366,2]
[422885269,1779571844000,-200.0,0.00027397,2]
[422885217,1779571844000,-550.0,0.00026,2]
[422885227,1779571844000,-646.65982734,0.00026532,2]
[422885234,1779571844000,-151.0,0.000269,2]
[422885256,1779571844000,-815.0,0.00027301,4]
[422885259,1779571844000,-1093.31332939,0.00027344,2]
[422885216,1779571844000,-236.66595613,0.00025958,2]
[422885208,1779571844000,-815.0,0.00025082,2]
[422885223,1779571844000,-765.4912534,0.00026292,2]
[422885248,1779571844000,-253.248701,0.00027297,2]
[422885265,1779571844000,-151.0,0.00027397,2]
[422885271,1779571844000,-156.6,0.00027397,31]
[422885274,1779571844000,-1000.0,0.00027397,20]
[422885273,1779571844000,-450.14,0.00027397,2]
[422885251,1779571844000,-151.0,0.00027297,2]
[422885224,1779571844000,-381.9,0.00026296,2]
[422885252,1779571844000,-151.0,0.00027297,2]
[422885258,1779571844000,-2177.81592075,0.00027344,2]
[422885210,1779571844000,-12181.99,0.00025449,7]
[422885255,1779571844000,-151.0,0.00027297,2]
[422885218,1779571844000,-815.0,0.00026192,3]
[422885237,1779571844000,-239.77184,0.000269,2]
[422885257,1779571844000,-267.45,0.00027342,7]
[422885267,1779571844000,-487.0,0.00027397,2]
[422885272,1779571844000,-300.0,0.00027397,2]
[422885241,1779571844000,-151.0,0.000269,2]
[422885266,1779571844000,-487.0,0.00027397,2]
[422885260,1779571844000,-200.0,0.00027365,2]
[422885205,1779571844000,-667.0,0.00025,2]
[422885212,1779571844000,-1093.31332939,0.00025567,2]
[422885222,1779571844000,-14899.3385221,0.00026292,2]
[422885240,1779571844000,-151.0,0.000269,2]
[422885250,1779571844000,-151.0,0.00027297,2]
[422885253,1779571844000,-151.0,0.00027297,2]
[422885214,1779571844000,-1000.0,0.000256,2]
[422885243,1779571844000,-152.0,0.00026974,7]
[422885219,1779571844000,-774.3966305,0.00026292,2]
[422885254,1779571844000,-151.0,0.00027297,2]
[422885235,1779571844000,-151.0,0.000269,2]
[422885278,1779571844000,-523.396642,0.00027397,2]
[422885206,1779571844000,-757.0,0.00025,2]
[422885207,1779571844000,-154.0,0.00025,2]
[422885211,1779571844000,-2177.81592075,0.00025567,2]
[422885231,1779571844000,-152.0,0.00026891,7]
[422885277,1779571844000,-523.396642,0.00027397,2]
[422885244,1779571844000,-150.0,0.00027099,7]
[422885263,1779571844000,-151.0,0.00027397,2]
[422885275,1779571844000,-208.119793,0.00027397,2]
[422885276,1779571844000,-523.396642,0.00027397,2]
[422885305,1779571845000,-500.0,0.000274,2]
[422885311,1779571845000,-523.396642,0.000274,7]
[422885304,1779571845000,-500.0,0.000274,2]
[422885336,1779571845000,-4152.02,0.0002755,30]
[422885398,1779571845000,-310.38,0.00028068,30]
[422885318,1779571845000,-227.578172,0.000274,7]
[422885310,1779571845000,-523.396642,0.000274,7]
[422885315,1779571845000,-253.248701,0.000274,7]
[422885307,1779571845000,-151.0,0.000274,7]
[422885306,1779571845000,-838.18,0.000274,2]
[422885321,1779571845000,-151.0,0.000274,7]
[422885299,1779571845000,-500.0,0.000274,2]
[422885357,1779571845000,-310.72,0.00027763,7]
[422885316,1779571845000,-253.248701,0.000274,7]
[422885359,1779571845000,-310.72,0.00027794,30]
[422885390,1779571845000,-151.0,0.00028033,7]
[422885385,1779571845000,-310.72,0.00028007,2]
[422885345,1779571845000,-310.38,0.00027672,7]
[422885361,1779571845000,-310.38,0.00027824,2]
[422885381,1779571845000,-310.38,0.00027977,30]
[422885384,1779571845000,-310.38,0.00028007,2]
[422885397,1779571845000,-310.72,0.00028038,7]
[422885379,1779571845000,-310.38,0.00027946,7]
[422885399,1779571845000,-310.72,0.00028068,30]
[422885325,1779571845000,-151.0,0.000274,7]
[422885350,1779571845000,-1427.414,0.00027711,17]
[422885366,1779571845000,-310.72,0.00027855,7]
[422885383,1779571845000,-600.0,0.00028,2]
[422885403,1779571845000,-310.9,0.0002813,7]
[422885364,1779571845000,-151.0,0.00027824,7]
[422885300,1779571845000,-500.0,0.000274,2]
[422885280,1779571845000,-154.68493,0.00027397,2]
[422885320,1779571845000,-151.0,0.000274,7]
[422885283,1779571845000,-151.0,0.00027397,2]
[422885282,1779571845000,-151.0,0.00027397,2]
[422885281,1779571845000,-151.0,0.00027397,2]
[422885296,1779571845000,-500.0,0.000274,2]
[422885287,1779571845000,-151.0,0.00027397,2]
[422885293,1779571845000,-163.43,0.000274,2]
[422885303,1779571845000,-500.0,0.000274,2]
[422885302,1779571845000,-500.0,0.000274,2]
[422885309,1779571845000,-523.396642,0.000274,7]
[422885288,1779571845000,-151.0,0.00027397,2]
[422885323,1779571845000,-151.0,0.000274,7]
[422885298,1779571845000,-500.0,0.000274,2]
[422885317,1779571845000,-181.719688,0.000274,7]
[422885286,1779571845000,-151.0,0.00027397,2]
[422885297,1779571845000,-500.0,0.000274,2]
[422885312,1779571845000,-523.396642,0.000274,7]
[422885295,1779571845000,-500.0,0.000274,2]
[422885290,1779571845000,-151.0,0.00027397,2]
[422885294,1779571845000,-500.0,0.000274,2]
[422885301,1779571845000,-500.0,0.000274,2]
[422885313,1779571845000,-253.248701,0.000274,7]
[422885308,1779571845000,-151.0,0.000274,7]
[422885319,1779571845000,-151.0,0.000274,7]
[422885285,1779571845000,-151.0,0.00027397,2]
[422885289,1779571845000,-151.0,0.00027397,2]
[422885292,1779571845000,-208.0,0.000274,5]
[422885322,1779571845000,-151.0,0.000274,7]
[422885314,1779571845000,-253.248701,0.000274,7]
[422885291,1779571845000,-150.0,0.00027397,2]
[422885284,1779571845000,-151.0,0.00027397,2]
[422885407,1779571845000,-523.396642,0.00028194,7]
[422885332,1779571845000,-150.0,0.00027521,2]
[422885410,1779571845000,-523.396642,0.00028194,7]
[422885376,1779571845000,-310.72,0.00027885,30]
[422885380,1779571845000,-310.72,0.00027946,7]
[422885408,1779571845000,-523.396642,0.00028194,7]
[422885328,1779571845000,-5200.23,0.000274,2]
[422885348,1779571845000,-310.72,0.00027702,30]
[422885360,1779571845000,-746.27,0.000278,7]
[422885394,1779571845000,-4152.02,0.00028033,30]
[422885395,1779571845000,-4692.27,0.00028033,30]
[422885331,1779571845000,-5200.23,0.000274,2]
[422885343,1779571845000,-310.38,0.00027641,2]
[422885344,1779571845000,-310.72,0.00027641,2]
[422885378,1779571845000,-310.72,0.00027916,2]
[422885371,1779571845000,-4152.02,0.00027872,2]
[422885386,1779571845000,-2496.03,0.00028033,30]
[422885392,1779571845000,-151.0,0.00028033,7]
[422885334,1779571845000,-310.38,0.0002755,2]
[422885362,1779571845000,-310.72,0.00027824,2]
[422885356,1779571845000,-310.38,0.00027763,7]
[422885365,1779571845000,-310.38,0.00027855,7]
[422885391,1779571845000,-151.0,0.00028033,7]
[422885367,1779571845000,-815.0,0.00027856,4]
[422885369,1779571845000,-151.0,0.00027872,7]
[422885393,1779571845000,-151.0,0.00028033,7]
[422885329,1779571845000,-5200.23,0.000274,2]
[422885355,1779571845000,-310.72,0.00027733,2]
[422885373,1779571845000,-4692.27,0.00027872,2]
[422885387,1779571845000,-151.0,0.00028033,7]
[422885404,1779571845000,-150.0,0.00028144,30]
[422885409,1779571845000,-523.396642,0.00028194,7]
[422885375,1779571845000,-310.38,0.00027885,30]
[422885351,1779571845000,-164.393,0.00027711,17]
[422885396,1779571845000,-310.38,0.00028038,7]
[422885400,1779571845000,-310.38,0.00028099,2]
[422885406,1779571845000,-2496.03,0.00028194,7]
[422885327,1779571845000,-5200.23,0.000274,2]
[422885346,1779571845000,-310.72,0.00027672,7]
[422885363,1779571845000,-151.0,0.00027824,7]
[422885377,1779571845000,-310.38,0.00027916,2]
[422885382,1779571845000,-310.72,0.00027977,30]
[422885388,1779571845000,-151.0,0.00028033,7]
[422885402,1779571845000,-310.51,0.0002813,7]
[422885405,1779571845000,-200.0,0.00028158,2]
[422885335,1779571845000,-310.72,0.0002755,2]
[422885354,1779571845000,-310.38,0.00027733,2]
[422885370,1779571845000,-255.530452,0.00027872,7]
[422885338,1779571845000,-310.38,0.0002758,7]
[422885337,1779571845000,-4692.27,0.0002755,30]
[422885347,1779571845000,-310.38,0.00027702,30]
[422885368,1779571845000,-2496.03,0.00027872,2]
[422885349,1779571845000,-2496.03,0.00027711,7]
[422885358,1779571845000,-310.38,0.00027794,30]
[422885324,1779571845000,-151.0,0.000274,7]
[422885389,1779571845000,-151.0,0.00028033,7]
[422885341,1779571845000,-310.38,0.00027611,30]
[422885340,1779571845000,-7181.9944,0.00027611,2]
[422885342,1779571845000,-310.72,0.00027611,30]
[422885333,1779571845000,-2496.03,0.0002755,30]
[422885353,1779571845000,-4692.27,0.00027711,7]
[422885352,1779571845000,-4152.02,0.00027711,7]
[422885330,1779571845000,-5200.23,0.000274,2]
[422885326,1779571845000,-151.0,0.000274,7]
[422885401,1779571845000,-310.72,0.00028099,2]
[422885339,1779571845000,-310.72,0.0002758,7]
[422885443,1779571846000,-354.91567766,0.00028619,7]
[422885457,1779571846000,-181.55498606,0.00028619,7]
[422885437,1779571846000,-153.89009342,0.00028619,7]
[422885425,1779571846000,-4692.28,0.00028355,2]
[422885423,1779571846000,-1937.05362205,0.00028355,2]
[422885452,1779571846000,-183.74032724,0.00028619,7]
[422885421,1779571846000,-381.9,0.00028267,2]
[422885458,1779571846000,-154.84293691,0.00028619,7]
[422885434,1779571846000,-746.27,0.000286,7]
[422885432,1779571846000,-4152.02,0.00028516,30]
[422885460,1779571846000,-172.01774813,0.00028619,7]
[422885413,1779571846000,-253.248701,0.00028194,7]
[422885433,1779571846000,-4692.28,0.00028516,30]
[422885475,1779571846000,-4692.28,0.00028838,2]
[422885411,1779571846000,-253.248701,0.00028194,7]
[422885417,1779571846000,-151.0,0.00028194,7]
[422885431,1779571846000,-2496.03,0.00028516,30]
[422885448,1779571846000,-209.42376584,0.00028619,7]
[422885456,1779571846000,-186.73782638,0.00028619,7]
[422885486,1779571846000,-1044.26,0.00029,2]
[422885480,1779571846000,-150.0,0.00028892,30]
[422885481,1779571846000,-150.0,0.00028897,2]
[422885477,1779571846000,-151.0,0.00028838,7]
[422885478,1779571846000,-151.0,0.00028838,7]
[422885485,1779571846000,-10130.75011653,0.00029,2]
[422885444,1779571846000,-265.89415412,0.00028619,7]
[422885482,1779571846000,-200.0,0.00028951,2]
[422885412,1779571846000,-253.248701,0.00028194,7]
[422885438,1779571846000,-353.06555732,0.00028619,7]
[422885441,1779571846000,-196.29781361,0.00028619,7]
[422885422,1779571846000,-2496.03,0.00028355,2]
[422885484,1779571846000,-164.51951652,0.00028971,2]
[422885419,1779571846000,-4152.02,0.00028194,7]
[422885440,1779571846000,-285.57718353,0.00028619,7]
[422885418,1779571846000,-151.0,0.00028194,7]
[422885436,1779571846000,-158.5554815,0.00028619,7]
[422885435,1779571846000,-177.29747899,0.00028619,7]
[422885430,1779571846000,-500.0,0.00028486,60]
[422885447,1779571846000,-155.65000795,0.00028619,7]
[422885454,1779571846000,-172.28356634,0.00028619,7]
[422885429,1779571846000,-500.0,0.00028486,60]
[422885428,1779571846000,-3178.49680005,0.00028473,7]
[422885455,1779571846000,-223.4010219,0.00028619,7]
[422885450,1779571846000,-165.90904312,0.00028619,7]
[422885459,1779571846000,-184.51701925,0.00028619,7]
[422885424,1779571846000,-2214.96637795,0.00028355,2]
[422885414,1779571846000,-253.248701,0.00028194,7]
[422885415,1779571846000,-151.0,0.00028194,7]
[422885416,1779571846000,-151.0,0.00028194,7]
[422885445,1779571846000,-152.16731083,0.00028619,7]
[422885449,1779571846000,-172.07575485,0.00028619,7]
[422885453,1779571846000,-216.84132403,0.00028619,7]
[422885451,1779571846000,-159.29660145,0.00028619,7]
[422885427,1779571846000,-815.0,0.00028411,5]
[422885439,1779571846000,-191.69762382,0.00028619,2]
[422885446,1779571846000,-159.81896112,0.00028619,7]
[422885420,1779571846000,-4692.27,0.00028194,7]
[422885442,1779571846000,-173.57994582,0.00028619,7]
[422885426,1779571846000,-150.0,0.00028411,2]
[422885472,1779571846000,-150.0,0.00028767,2]
[422885463,1779571846000,-157.28468931,0.00028619,7]
[422885461,1779571846000,-190.84244452,0.00028619,7]
[422885535,1779571846000,-9760.00798752,0.000295,40]
[422885489,1779571846000,-151.0,0.00029,7]
[422885495,1779571846000,-523.396642,0.00029,7]
[422885496,1779571846000,-253.248701,0.00029,7]
[422885498,1779571846000,-253.248701,0.00029,7]
[422885502,1779571846000,-151.0,0.00029,7]
[422885512,1779571846000,-10000.0,0.00029,2]
[422885517,1779571846000,-2191.4054395,0.00029226,2]
[422885551,1779571846000,-523.396642,0.000295,7]
[422885554,1779571846000,-253.248701,0.000295,7]
[422885494,1779571846000,-523.396642,0.00029,7]
[422885519,1779571846000,-621.78829552,0.00029271,2]
[422885543,1779571846000,-151.0,0.000295,7]
[422885521,1779571846000,-670.58624095,0.00029271,2]
[422885553,1779571846000,-523.396634,0.000295,7]
[422885539,1779571846000,-10180.01112067,0.000295,40]
[422885509,1779571846000,-4692.28,0.00029,30]
[422885499,1779571846000,-253.248701,0.00029,7]
[422885497,1779571846000,-253.248701,0.00029,7]
[422885513,1779571846000,-171.68,0.000291,4]
[422885545,1779571846000,-175.69602,0.000295,7]
[422885491,1779571846000,-523.396642,0.00029,7]
[422885504,1779571846000,-175.879392,0.00029,7]
[422885479,1779571846000,-151.0,0.00028838,7]
[422885501,1779571846000,-151.0,0.00029,7]
[422885507,1779571846000,-152.0,0.00029,2]
[422885525,1779571846000,-500.0,0.00029308,60]
[422885537,1779571846000,-11784.81289998,0.000295,40]
[422885514,1779571846000,-2177.81592075,0.00029122,2]
[422885493,1779571846000,-500.0,0.00029,2]
[422885492,1779571846000,-523.396642,0.00029,7]
[422885533,1779571846000,-10982.41201032,0.000295,40]
[422885490,1779571846000,-9000.0,0.00029,2]
[422885487,1779571846000,-10116.16061984,0.00029,2]
[422885474,1779571846000,-4152.02,0.00028838,2]
[422885467,1779571846000,-4152.02,0.00028677,7]
[422885465,1779571846000,-7727.8677546,0.00028624,2]
[422885470,1779571846000,-151.0,0.00028677,7]
[422885476,1779571846000,-151.0,0.00028838,7]
[422885469,1779571846000,-151.0,0.00028677,7]
[422885462,1779571846000,-152.92636979,0.00028619,7]
[422885473,1779571846000,-2496.03,0.00028838,2]
[422885466,1779571846000,-2496.03,0.00028677,7]
[422885483,1779571846000,-815.0,0.00028965,6]
[422885471,1779571846000,-206.617117,0.00028677,7]
[422885464,1779571846000,-180.30630611,0.00028619,7]
[422885523,1779571846000,-1500.0,0.000293,7]
[422885529,1779571846000,-4852.76986623,0.000295,40]
[422885468,1779571846000,-4692.28,0.00028677,7]
[422885515,1779571846000,-1093.31332939,0.00029122,2]
[422885547,1779571846000,-523.396642,0.000295,7]
[422885531,1779571846000,-9377.61023113,0.000295,40]
[422885511,1779571846000,-2496.03,0.00029,30]
[422885488,1779571846000,-151.0,0.00029,7]
[422885503,1779571846000,-156.611324,0.00029,7]
[422885500,1779571846000,-151.0,0.00029,7]
[422885549,1779571846000,-523.396642,0.000295,7]
[422885541,1779571846000,-12587.53140801,0.000295,40]
[422885506,1779571846000,-4152.02,0.00029,30]
[422885527,1779571846000,-746.27,0.000295,7]
[422885647,1779571847000,-347.15989165,0.00029957,7]
[422885673,1779571847000,-446.8020438,0.00029957,7]
[422885556,1779571847000,-253.248701,0.000295,7]
[422885588,1779571847000,-328.28971439,0.000297,2]
[422885582,1779571847000,-1000.0,0.000296,10]
[422885602,1779571847000,-153.0,0.00029825,30]
[422885618,1779571847000,-739.0,0.00029825,30]
[422885651,1779571847000,-304.33462165,0.00029957,7]
[422885654,1779571847000,-192.93412737,0.00029957,7]
[422885681,1779571847000,-344.03549627,0.00029957,7]
[422885690,1779571847000,-20000.0,0.0003,2]
[422885689,1779571847000,-157.6855579,0.00029957,7]
[422885560,1779571847000,-253.248693,0.000295,7]
[422885608,1779571847000,-158.0,0.00029825,30]
[422885612,1779571847000,-659.0,0.00029825,30]
[422885672,1779571847000,-200.21473935,0.00029957,7]
[422885678,1779571847000,-172.30336637,0.00029957,7]
[422885682,1779571847000,-381.68488903,0.00029957,7]
[422885691,1779571847000,-4946.16367313,0.0003,4]
[422885578,1779571847000,-151.0,0.000295,7]
[422885630,1779571847000,-164.05680515,0.00029957,7]
[422885614,1779571847000,-152.0,0.00029825,30]
[422885688,1779571847000,-360.61261222,0.00029957,7]
[422885641,1779571847000,-150.44452937,0.00029957,7]
[422885576,1779571847000,-166.705992,0.000295,7]
[422885616,1779571847000,-159.0,0.00029825,30]
[422885643,1779571847000,-307.78018684,0.00029957,7]
[422885661,1779571847000,-171.54974681,0.00029957,2]
[422885663,1779571847000,-331.81808624,0.00029957,7]
[422885669,1779571847000,-249.79192844,0.00029957,7]
[422885677,1779571847000,-369.0340385,0.00029957,7]
[422885692,1779571847000,-12590.52820631,0.0003,5]
[422885620,1779571847000,-154.0,0.00029825,30]
[422885693,1779571847000,-151.0,0.0003,7]
[422885580,1779571847000,-815.0,0.0002952,6]
[422885648,1779571847000,-392.59562722,0.00029957,7]
[422885656,1779571847000,-195.92981023,0.00029957,7]
[422885640,1779571847000,-191.3895968,0.00029957,5]
[422885664,1779571847000,-197.45881149,0.00029957,7]
[422885655,1779571847000,-311.30001591,0.00029957,7]
[422885683,1779571847000,-305.85273958,0.00029957,7]
[422885685,1779571847000,-189.79135539,0.00029957,7]
[422885687,1779571847000,-195.88850277,0.00029957,7]
[422885558,1779571847000,-253.248701,0.000295,7]
[422885598,1779571847000,-153.0,0.00029825,30]
[422885624,1779571847000,-1796.54,0.00029865,2]
[422885645,1779571847000,-383.39524765,0.00029957,2]
[422885653,1779571847000,-205.60749121,0.00029957,7]
[422885676,1779571847000,-309.68587381,0.00029957,7]
[422885574,1779571847000,-151.0,0.000295,7]
[422885675,1779571847000,-363.10997212,0.00029957,7]
[422885646,1779571847000,-571.15436707,0.00029957,7]
[422885637,1779571847000,-208.41363895,0.00029957,7]
[422885680,1779571847000,-202.73498448,0.00029957,7]
[422885607,1779571847000,-441.0,0.00029825,30]
[422885622,1779571847000,-152.0,0.00029826,30]
[422885628,1779571847000,-180.2909131,0.00029957,7]
[422885644,1779571847000,-706.13111463,0.00029957,7]
[422885635,1779571847000,-208.11194921,0.00029957,7]
[422885684,1779571847000,-217.18245903,0.00029957,2]
[422885570,1779571847000,-151.0,0.000295,7]
[422885594,1779571847000,-200.0,0.00029744,2]
[422885610,1779571847000,-152.0,0.00029825,30]
[422885633,1779571847000,-317.110963,0.00029957,7]
[422885674,1779571847000,-373.47565277,0.00029957,7]
[422885604,1779571847000,-153.0,0.00029825,30]
[422885667,1779571847000,-433.68264807,0.00029957,7]
[422885695,1779571847000,-151.0,0.0003,7]
[422885697,1779571847000,-218.76417585,0.0003003,2]
[422885699,1779571847000,-302.68663302,0.00030035,2]
[422885694,1779571847000,-650.0,0.0003,2]
[422885698,1779571847000,-3769.7149016,0.0003003,2]
[422885703,1779571847000,-325.56788022,0.0003013,60]
[422885700,1779571847000,-815.0,0.00030075,7]
[422885702,1779571847000,-2459.23374435,0.0003013,2]
[422885701,1779571847000,-150.0,0.0003011,7]
[422885696,1779571847000,-11066.88073456,0.0003003,2]
[422885600,1779571847000,-155.0,0.00029825,30]
[422885590,1779571847000,-328.28971436,0.000297,2]